Workbook

Sheet Navigation
K7: Kashmir Agro Centre-9061129
L8: Stock and Sales FOR THE PERIOD 01-Apr-2021 TO 31-Aug-2021

Sheet Dealer Report
A1: Kashmir Agro Center - (BAYER)
A2: Court Road Badambagh Sopore,193201
A3: 9419024183,9419038655
A4: Bayer Cropscience Limited
A5: Stock Group Summary
A6: 1-Apr-21 to 31-Aug-21
B7: Bayer Cropscience Limited
B8: Kashmir Agro Center - (BAYER)
A9: Particulars | B9: 1-Apr-21 to 31-Aug-21
B10: Opening Balance | C10: Inwards | D10: Outwards | E10: Closing Balance
B11: Quantity | C11: Quantity | D11: Quantity | E11: Quantity
A12: Admire 150 Grm (1cs*4.500 Kgs) | B12: 0 | C12: 0 | D12: 0 | E12: 0
A13: Admire 300grm (1cs* 6 Kg) | B13: 0 | C13: 0 | D13: 0 | E13: 0
A14: Alanto 1 Ltr (1cs* 10 Ltrs) | B14: 249 | C14: 797 | D14: 1046 | E14: 0
A15: Alanto 20*500ml(1cs*10ltr) | B15: 301.5 | C15: 918 | D15: 1129.5 | E15: 90
A16: Alanto 40*250ml(1cs*10 Ltr) | B16: 120 | C16: 897.75 | D16: 1017.75 | E16: 0
A17: Alanto 50*100ml(1cs*5Ltr) | B17: 67.7 | C17: 429.7 | D17: 482.4 | E17: 15
A18: Aliette 100 Grm(1cs*4kg) | B18: 0 | C18: 0 | D18: 0 | E18: 0
A19: Aliette 1 Kg (1cs* 10 Kg) | B19: 0 | C19: 0 | D19: 0 | E19: 0
A20: Aliette 250 Grm(1cs*5kg) | B20: 0 | C20: 0 | D20: 0 | E20: 0
A21: Antracol 100 Grm (1cs*5 Kgs) | B21: 0 | C21: 0 | D21: 0 | E21: 0
A22: Antracol 1kg (1cs*10kg) | B22: 85768 | C22: 60513 | D22: 108931 | E22: 37350
A23: Antracol 250 Grm (1cs*10 Kgs) | B23: 0 | C23: 0 | D23: 0 | E23: 0
A24: Antracol 500grm (1cs*10 Kgs) | B24: 0 | C24: 0 | D24: 0 | E24: 0
A25: Baycor 100 Grm (1cs*5kgs) | B25: 0 | C25: 0 | D25: 0 | E25: 0
A26: Bayleton 1kg(1cs* 5 Kg) | B26: 0 | C26: 0 | D26: 0 | E26: 0
A27: Bayliton 100 Grm (1cs*5kg) | B27: 0 | C27: 0 | D27: 0 | E27: 0
A28: Bayliton 500 Grm (1cs*5kgs) | B28: 0 | C28: 0 | D28: 0 | E28: 0
A29: Bilzeb 1kg (1cs*10kg) | B29: 0 | C29: 0 | D29: 0 | E29: 0
A30: Confidor 1ltr (1cs*10 Ltr) | B30: 0 | C30: 0 | D30: 0 | E30: 0
A31: Ethrel 100 Ml (1cs*5 Ltr) | B31: 0 | C31: 0 | D31: 0 | E31: 0
A32: Ethrel 1 Ltr(1cs*10 Ltr) | B32: 0 | C32: 0 | D32: 0 | E32: 0
A33: Ethrel 500 Ml (1cs* 10 Ltr) | B33: 0 | C33: 0 | D33: 0 | E33: 0
A34: Fame 10ML(1case*200 Bottles) | B34: 0 | C34: 0 | D34: 0 | E34: 0
A35: Foligure 1 Ltr(1cs* 10 Ltr) | B35: 0 | C35: 0 | D35: 0 | E35: 0
A36: Luna Experience 100ml (1cs*5 Ltr) | B36: 189.7 | C36: 0 | D36: 122.1 | E36: 67.6
A37: Luna Experience 1 Ltr(1cs*10 Ltr) | B37: 286 | C37: 1207 | D37: 1362 | E37: 131
A38: Luna Experience 250 Ml(1cs*10 Ltr) | B38: 100 | C38: 1196.5 | D38: 1186.5 | E38: 110
A39: Nativo 1 Kg (1cs*10kgs) | B39: 4830 | C39: -1100 | D39: 3589 | E39: 141
A40: Nativo 20*500grm(1cs*10kg) | B40: 5996 | C40: 1000 | D40: 6426 | E40: 570
A41: Nativo 40*250grm(1cs*10kg) | B41: 3372.25 | C41: -200 | D41: 3004.25 | E41: 168
A42: Nativo 50*100grm(1cs*5kg) | B42: 841.1 | C42: 100 | D42: 906.1 | E42: 35
A43: Oberon 100 Ml (1cs*5ltr) | B43: 15 | C43: 50 | D43: 61 | E43: 4
A44: Oberon 1 Ltr (1cs*10 Ltr) | B44: 0 | C44: 150 | D44: 83 | E44: 67
A45: Oberon 200 Ml (1cs*8 Ltr) | B45: -1 | C45: 248 | D45: 232 | E45: 15
A46: Oberon 2 Ltr (1cs*10 Ltr) | B46: 0 | C46: 0 | D46: 0 | E46: 0
A47: Oberon 500 Ml (1cs*10 Ltr) | B47: 11.5 | C47: 348 | D47: 343.5 | E47: 16
A48: Planofix 100 Ml (1cs* 5ltr) | B48: 164.9 | C48: 2998.8 | D48: 2679.3 | E48: 484.4
A49: Planofix 1ltr( 1cs*10 Ltr) | B49: 0 | C49: 0 | D49: 0 | E49: 0
A50: Planofix 250 Ml (1cs*10 Ltr) | B50: 276.5 | C50: 0 | D50: 276.5 | E50: 0
A51: Planofix 500 Ml (1cs*10 Ltr) | B51: 469.5 | C51: 0 | D51: 468 | E51: 1.5
A52: Regent 1 Kg (1cs*10 Kgs) | B52: 0 | C52: 0 | D52: 0 | E52: 0
A53: Top Star 22 Grm (1cs*160 Pouchs) | B53: 0 | C53: 0 | D53: 0 | E53: 0
A54: Grand Total | B54: 10431 | C54: 69553.75 | D54: 133345.9 | E54: 3996

Sheet Dealer Report working
A1: Particulars | B1: Opening Qty | C1: Purchase Qty | D1: Sales Qty | E1: CLSG | F1: Master Name | K1: Values
A2: Admire 150 Grm (1cs*4.500 Kgs) | B2: 0 | C2: 0 | D2: 0 | E2: 0 | F2: ADMIRE (T) WG70 30X150GR BOT IN | J2: Row Labels | K2: Sum of Opening Qty | L2: Sum of Purchase Qty | M2: Sum of Sales Qty | N2: Sum of CLSG
A3: Admire 300grm (1cs* 6 Kg) | B3: 0 | C3: 0 | D3: 0 | E3: 0 | F3: ADMIRE WG70 20X300GR BAG IN | J3: ADMIRE (T) WG70 30X150GR BOT IN | K3: 0 | L3: 0 | M3: 0 | N3: 0
A4: Alanto 1 Ltr (1cs* 10 Ltrs) | B4: 249 | C4: 797 | D4: 1046 | E4: 0 | F4: ALANTO (T) SC240 10X1L BOT IN | J4: ADMIRE WG70 20X300GR BAG IN | K4: 0 | L4: 0 | M4: 0 | N4: 0
A5: Alanto 20*500ml(1cs*10ltr) | B5: 301.5 | C5: 918 | D5: 1129.5 | E5: 90 | F5: ALANTO (T) SC240 20X500ML BOT IN | J5: ALANTO (T) SC240 10X1L BOT IN | K5: 249 | L5: 797 | M5: 1046 | N5: 0
A6: Alanto 40*250ml(1cs*10 Ltr) | B6: 120 | C6: 897.75 | D6: 1017.75 | E6: 0 | F6: ALANTO (T) SC240 40X250ML BOT IN | J6: ALANTO (T) SC240 20X500ML BOT IN | K6: 301.5 | L6: 918 | M6: 1129.5 | N6: 90
A7: Alanto 50*100ml(1cs*5Ltr) | B7: 67.7 | C7: 429.7 | D7: 482.4 | E7: 15 | F7: ALANTO (T) SC240 50X100ML BOT IN | J7: ALANTO (T) SC240 40X250ML BOT IN | K7: 120 | L7: 897.75 | M7: 1017.75 | N7: 0
A8: Aliette 100 Grm(1cs*4kg) | B8: 0 | C8: 0 | D8: 0 | E8: 0 | F8: ALIETTE WP80 40X100GR BAG IN | J8: ALANTO (T) SC240 50X100ML BOT IN | K8: 67.7 | L8: 429.7 | M8: 482.4 | N8: 15
A9: Aliette 1 Kg (1cs* 10 Kg) | B9: 0 | C9: 0 | D9: 0 | E9: 0 | F9: ALIETTE WP80 10X1KG BAG IN | J9: ALIETTE WP80 10X1KG BAG IN | K9: 0 | L9: 0 | M9: 0 | N9: 0
A10: Aliette 250 Grm(1cs*5kg) | B10: 0 | C10: 0 | D10: 0 | E10: 0 | F10: ALIETTE WP80 20X250GR BAG IN | J10: ALIETTE WP80 20X250GR BAG IN | K10: 0 | L10: 0 | M10: 0 | N10: 0
A11: Antracol 100 Grm (1cs*5 Kgs) | B11: 0 | C11: 0 | D11: 0 | E11: 0 | F11: ANTRACOL (T) WP70 50X100GR BAG IN | J11: ALIETTE WP80 40X100GR BAG IN | K11: 0 | L11: 0 | M11: 0 | N11: 0
A12: Antracol 1kg (1cs*10kg) | B12: 85768 | C12: 60513 | D12: 108931 | E12: 37350 | F12: ANTRACOL (T) WP70 10X1KG BAG IN | J12: ANTRACOL (T) WP70 10X1KG BAG IN | K12: 85768 | L12: 60513 | M12: 108931 | N12: 37350
A13: Antracol 250 Grm (1cs*10 Kgs) | B13: 0 | C13: 0 | D13: 0 | E13: 0 | F13: ANTRACOL (T) WP70 40X250GR BAG IN | J13: ANTRACOL (T) WP70 20X500GR BAG IN | K13: 0 | L13: 0 | M13: 0 | N13: 0
A14: Antracol 500grm (1cs*10 Kgs) | B14: 0 | C14: 0 | D14: 0 | E14: 0 | F14: ANTRACOL (T) WP70 20X500GR BAG IN | J14: ANTRACOL (T) WP70 40X250GR BAG IN | K14: 0 | L14: 0 | M14: 0 | N14: 0
A15: Baycor 100 Grm (1cs*5kgs) | B15: 0 | C15: 0 | D15: 0 | E15: 0 | F15: DISCOUNTINUE PRODUCT | J15: ANTRACOL (T) WP70 50X100GR BAG IN | K15: 0 | L15: 0 | M15: 0 | N15: 0
A16: Bayleton 1kg(1cs* 5 Kg) | B16: 0 | C16: 0 | D16: 0 | E16: 0 | F16: BAYFOLAN ALGAE 10X1L BOT IN | J16: BAYFOLAN ALGAE 10X1L BOT IN | K16: 0 | L16: 0 | M16: 0 | N16: 0
A17: Bayliton 100 Grm (1cs*5kg) | B17: 0 | C17: 0 | D17: 0 | E17: 0 | F17: DISCOUNTINUE PRODUCT | J17: BAYFOLAN ALGAE 20X500ML BOT IN | K17: 0 | L17: 0 | M17: 0 | N17: 0
A18: Bayliton 500 Grm (1cs*5kgs) | B18: 0 | C18: 0 | D18: 0 | E18: 0 | F18: BAYFOLAN ALGAE 20X500ML BOT IN | J18: CONFIDOR (T) SL200 10X1L BOT IN | K18: 0 | L18: 0 | M18: 0 | N18: 0
A19: Bilzeb 1kg (1cs*10kg) | B19: 0 | C19: 0 | D19: 0 | E19: 0 | F19: DISCOUNTINUE PRODUCT | J19: DISCOUNTINUE PRODUCT | K19: 0 | L19: 0 | M19: 0 | N19: 0
A20: Confidor 1ltr (1cs*10 Ltr) | B20: 0 | C20: 0 | D20: 0 | E20: 0 | F20: CONFIDOR (T) SL200 10X1L BOT IN | J20: ETHREL SL39 10X1L BOT IN | K20: 0 | L20: 0 | M20: 0 | N20: 0
A21: Ethrel 100 Ml (1cs*5 Ltr) | B21: 0 | C21: 0 | D21: 0 | E21: 0 | F21: ETHREL SL39 50X100ML BOT IN | J21: ETHREL SL39 20X500ML BOT IN | K21: 0 | L21: 0 | M21: 0 | N21: 0
A22: Ethrel 1 Ltr(1cs*10 Ltr) | B22: 0 | C22: 0 | D22: 0 | E22: 0 | F22: ETHREL SL39 10X1L BOT IN | J22: ETHREL SL39 50X100ML BOT IN | K22: 0 | L22: 0 | M22: 0 | N22: 0
A23: Ethrel 500 Ml (1cs* 10 Ltr) | B23: 0 | C23: 0 | D23: 0 | E23: 0 | F23: ETHREL SL39 20X500ML BOT IN | J23: FAME (T) SC480 10X(20X10ML) BOT IN | K23: 0 | L23: 0 | M23: 0 | N23: 0
A24: Fame 10ML(1case*200 Bottles) | B24: 0 | C24: 0 | D24: 0 | E24: 0 | F24: FAME (T) SC480 10X(20X10ML) BOT IN | J24: FOLICUR (T) EC250 10X1L BOT IN | K24: 0 | L24: 0 | M24: 0 | N24: 0
A25: Foligure 1 Ltr(1cs* 10 Ltr) | B25: 0 | C25: 0 | D25: 0 | E25: 0 | F25: FOLICUR (T) EC250 10X1L BOT IN | J25: LUNA EXPERIENCE SC400 10X1L BOT IN | K25: 286 | L25: 1207 | M25: 1362 | N25: 131
A26: Luna Experience 100ml (1cs*5 Ltr) | B26: 189.7 | C26: 0 | D26: 122.1 | E26: 67.6 | F26: LUNA EXPERIENCE SC400 50X100ML BOT IN | J26: LUNA EXPERIENCE SC400 40X250ML BOT IN | K26: 100 | L26: 1196.5 | M26: 1186.5 | N26: 110
A27: Luna Experience 1 Ltr(1cs*10 Ltr) | B27: 286 | C27: 1207 | D27: 1362 | E27: 131 | F27: LUNA EXPERIENCE SC400 10X1L BOT IN | J27: LUNA EXPERIENCE SC400 50X100ML BOT IN | K27: 189.7 | L27: 0 | M27: 122.1 | N27: 67.6
A28: Luna Experience 250 Ml(1cs*10 Ltr) | B28: 100 | C28: 1196.5 | D28: 1186.5 | E28: 110 | F28: LUNA EXPERIENCE SC400 40X250ML BOT IN | J28: NATIVO WG75 10X1KG BAG IN | K28: 4830 | L28: -1100 | M28: 3589 | N28: 141
A29: Nativo 1 Kg (1cs*10kgs) | B29: 4830 | C29: -1100 | D29: 3589 | E29: 141 | F29: NATIVO WG75 10X1KG BAG IN | J29: NATIVO WG75 20X500GR BAG IN | K29: 5996 | L29: 1000 | M29: 6426 | N29: 570
A30: Nativo 20*500grm(1cs*10kg) | B30: 5996 | C30: 1000 | D30: 6426 | E30: 570 | F30: NATIVO WG75 20X500GR BAG IN | J30: NATIVO WG75 40X250GR BAG IN | K30: 3372.25 | L30: -200 | M30: 3004.25 | N30: 168
A31: Nativo 40*250grm(1cs*10kg) | B31: 3372.25 | C31: -200 | D31: 3004.25 | E31: 168 | F31: NATIVO WG75 40X250GR BAG IN | J31: NATIVO WG75 50X100GR BAG IN | K31: 841.1 | L31: 100 | M31: 906.1 | N31: 35
A32: Nativo 50*100grm(1cs*5kg) | B32: 841.1 | C32: 100 | D32: 906.1 | E32: 35 | F32: NATIVO WG75 50X100GR BAG IN | J32: OBERON (T) SC240 10X1L BOT IN | K32: 0 | L32: 150 | M32: 83 | N32: 67
A33: Oberon 100 Ml (1cs*5ltr) | B33: 15 | C33: 50 | D33: 61 | E33: 4 | F33: OBERON (T) SC240 50X100ML BOT IN | J33: OBERON (T) SC240 20X500ML BOT IN | K33: 11.5 | L33: 348 | M33: 343.5 | N33: 16
A34: Oberon 1 Ltr (1cs*10 Ltr) | B34: 0 | C34: 150 | D34: 83 | E34: 67 | F34: OBERON (T) SC240 10X1L BOT IN | J34: OBERON (T) SC240 40X200ML BOT IN | K34: -1 | L34: 248 | M34: 232 | N34: 15
A35: Oberon 200 Ml (1cs*8 Ltr) | B35: -1 | C35: 248 | D35: 232 | E35: 15 | F35: OBERON (T) SC240 40X200ML BOT IN | J35: OBERON (T) SC240 50X100ML BOT IN | K35: 15 | L35: 50 | M35: 61 | N35: 4
A36: Oberon 2 Ltr (1cs*10 Ltr) | B36: 0 | C36: 0 | D36: 0 | E36: 0 | F36: OBERON (T) SC240 5X2L BOT IN | J36: OBERON (T) SC240 5X2L BOT IN | K36: 0 | L36: 0 | M36: 0 | N36: 0
A37: Oberon 500 Ml (1cs*10 Ltr) | B37: 11.5 | C37: 348 | D37: 343.5 | E37: 16 | F37: OBERON (T) SC240 20X500ML BOT IN | J37: PLANOFIX SL4 5 20X500ML BOT IN | K37: 469.5 | L37: 0 | M37: 468 | N37: 1.5
A38: Planofix 100 Ml (1cs* 5ltr) | B38: 164.9 | C38: 2998.8 | D38: 2679.3 | E38: 484.4 | F38: PLANOFIX SL4 5 50X100ML BOT IN | J38: PLANOFIX SL4 5 40X250ML BOT IN | K38: 276.5 | L38: 0 | M38: 276.5 | N38: 0
A39: Planofix 1ltr( 1cs*10 Ltr) | B39: 0 | C39: 0 | D39: 0 | E39: 0 | F39: PLANOFIX SL45 10X1L BOT IN | J39: PLANOFIX SL4 5 50X100ML BOT IN | K39: 164.9 | L39: 2998.8 | M39: 2679.3 | N39: 484.4
A40: Planofix 250 Ml (1cs*10 Ltr) | B40: 276.5 | C40: 0 | D40: 276.5 | E40: 0 | F40: PLANOFIX SL4 5 40X250ML BOT IN | J40: PLANOFIX SL45 10X1L BOT IN | K40: 0 | L40: 0 | M40: 0 | N40: 0
A41: Planofix 500 Ml (1cs*10 Ltr) | B41: 469.5 | C41: 0 | D41: 468 | E41: 1.5 | F41: PLANOFIX SL4 5 20X500ML BOT IN | J41: REGENT GR0 3 20X1KG BAG IN | K41: 0 | L41: 0 | M41: 0 | N41: 0
A42: Regent 1 Kg (1cs*10 Kgs) | B42: 0 | C42: 0 | D42: 0 | E42: 0 | F42: REGENT GR0 3 20X1KG BAG IN | J42: TOPSTAR (T) WP80 8X(20X22.5GR) BOX IN | K42: 0 | L42: 0 | M42: 0 | N42: 0
A43: Top Star 22 Grm (1cs*160 Pouchs) | B43: 0 | C43: 0 | D43: 0 | E43: 0 | F43: TOPSTAR (T) WP80 8X(20X22.5GR) BOX IN | J43: Grand Total | K43: 103057.65 | L43: 69553.75 | M43: 133345.9 | N43: 39265.5

Sheet Master
A1: Item Details | B1: Master Name
A2: Admire 150 Grm (1cs*4.500 Kgs) | B2: ADMIRE (T) WG70 30X150GR BOT IN
A3: Admire 300grm (1cs* 6 Kg) | B3: ADMIRE WG70 20X300GR BAG IN
A4: Alanto 1 Ltr (1cs* 10 Ltrs) | B4: ALANTO (T) SC240 10X1L BOT IN
A5: Alanto 20*500ml(1cs*10ltr) | B5: ALANTO (T) SC240 20X500ML BOT IN
A6: Alanto 40*250ml(1cs*10 Ltr) | B6: ALANTO (T) SC240 40X250ML BOT IN
A7: Alanto 50*100ml(1cs*5Ltr) | B7: ALANTO (T) SC240 50X100ML BOT IN
A8: Aliette 100 Grm(1cs*4kg) | B8: ALIETTE WP80 40X100GR BAG IN
A9: Aliette 1 Kg (1cs* 10 Kg) | B9: ALIETTE WP80 10X1KG BAG IN
A10: Aliette 250 Grm(1cs*5kg) | B10: ALIETTE WP80 20X250GR BAG IN
A11: Antracol 100 Grm (1cs*5 Kgs) | B11: ANTRACOL (T) WP70 50X100GR BAG IN
A12: Antracol 1kg (1cs*10kg) | B12: ANTRACOL (T) WP70 10X1KG BAG IN
A13: Antracol 250 Grm (1cs*10 Kgs) | B13: ANTRACOL (T) WP70 40X250GR BAG IN
A14: Antracol 500grm (1cs*10 Kgs) | B14: ANTRACOL (T) WP70 20X500GR BAG IN
A15: Baycor 100 Grm (1cs*5kgs) | B15: DISCOUNTINUE PRODUCT
A16: Bayleton 1kg(1cs* 5 Kg) | B16: BAYFOLAN ALGAE 10X1L BOT IN
A17: Bayliton 100 Grm (1cs*5kg) | B17: DISCOUNTINUE PRODUCT
A18: Bayliton 500 Grm (1cs*5kgs) | B18: BAYFOLAN ALGAE 20X500ML BOT IN
A19: Bilzeb 1kg (1cs*10kg) | B19: DISCOUNTINUE PRODUCT
A20: Confidor 1ltr (1cs*10 Ltr) | B20: CONFIDOR (T) SL200 10X1L BOT IN
A21: Ethrel 100 Ml (1cs*5 Ltr) | B21: ETHREL SL39 50X100ML BOT IN
A22: Ethrel 1 Ltr(1cs*10 Ltr) | B22: ETHREL SL39 10X1L BOT IN
A23: Ethrel 500 Ml (1cs* 10 Ltr) | B23: ETHREL SL39 20X500ML BOT IN
A24: Fame 10ML(1case*200 Bottles) | B24: FAME (T) SC480 10X(20X10ML) BOT IN
A25: Foligure 1 Ltr(1cs* 10 Ltr) | B25: FOLICUR (T) EC250 10X1L BOT IN
A26: Luna Experience 100ml (1cs*5 Ltr) | B26: LUNA EXPERIENCE SC400 50X100ML BOT IN
A27: Luna Experience 1 Ltr(1cs*10 Ltr) | B27: LUNA EXPERIENCE SC400 10X1L BOT IN
A28: Luna Experience 250 Ml(1cs*10 Ltr) | B28: LUNA EXPERIENCE SC400 40X250ML BOT IN
A29: Nativo 1 Kg (1cs*10kgs) | B29: NATIVO WG75 10X1KG BAG IN
A30: Nativo 20*500grm(1cs*10kg) | B30: NATIVO WG75 20X500GR BAG IN
A31: Nativo 40*250grm(1cs*10kg) | B31: NATIVO WG75 40X250GR BAG IN
A32: Nativo 50*100grm(1cs*5kg) | B32: NATIVO WG75 50X100GR BAG IN
A33: Oberon 100 Ml (1cs*5ltr) | B33: OBERON (T) SC240 50X100ML BOT IN
A34: Oberon 1 Ltr (1cs*10 Ltr) | B34: OBERON (T) SC240 10X1L BOT IN
A35: Oberon 200 Ml (1cs*8 Ltr) | B35: OBERON (T) SC240 40X200ML BOT IN
A36: Oberon 2 Ltr (1cs*10 Ltr) | B36: OBERON (T) SC240 5X2L BOT IN
A37: Oberon 500 Ml (1cs*10 Ltr) | B37: OBERON (T) SC240 20X500ML BOT IN
A38: Planofix 100 Ml (1cs* 5ltr) | B38: PLANOFIX SL4 5 50X100ML BOT IN
A39: Planofix 1ltr( 1cs*10 Ltr) | B39: PLANOFIX SL45 10X1L BOT IN
A40: Planofix 250 Ml (1cs*10 Ltr) | B40: PLANOFIX SL4 5 40X250ML BOT IN
A41: Planofix 500 Ml (1cs*10 Ltr) | B41: PLANOFIX SL4 5 20X500ML BOT IN
A42: Regent 1 Kg (1cs*10 Kgs) | B42: REGENT GR0 3 20X1KG BAG IN
A43: Top Star 22 Grm (1cs*160 Pouchs) | B43: TOPSTAR (T) WP80 8X(20X22.5GR) BOX IN

Sheet Final Dealer Work
B2: PRODUCT | C2: ITEMALIAS | D2: Bpc | E2: Volume | F2: Opening Qty | G2: Purchase Qty | H2: Purchase Return Qty | I2: Sales Qty | J2: Sales Return Qty | K2: Transfer Qty | L2: Consignment Qty | M2: Adjustment Qty | N2: CLSG
B3: ADMIRE (T) WG70 30X150GR BOT IN | F3: 0 | G3: 0 | H3: 0 | I3: 0 | J3: 0 | K3: 0 | L3: 0 | M3: 0 | N3: 0
B4: ADMIRE WG70 20X300GR BAG IN | F4: 0 | G4: 0 | H4: 0 | I4: 0 | J4: 0 | K4: 0 | L4: 0 | M4: 0 | N4: 0
B5: ALANTO (T) SC240 10X1L BOT IN | F5: 249 | G5: 797 | H5: 0 | I5: 1046 | J5: 0 | K5: 0 | L5: 0 | M5: 0 | N5: 0
B6: ALANTO (T) SC240 20X500ML BOT IN | F6: 301.5 | G6: 918 | H6: 0 | I6: 1129.5 | J6: 0 | K6: 0 | L6: 0 | M6: 0 | N6: 90
B7: ALANTO (T) SC240 40X250ML BOT IN | F7: 120 | G7: 897.75 | H7: 0 | I7: 1017.75 | J7: 0 | K7: 0 | L7: 0 | M7: 0 | N7: 0
B8: ALANTO (T) SC240 50X100ML BOT IN | F8: 67.7 | G8: 429.7 | H8: 0 | I8: 482.4 | J8: 0 | K8: 0 | L8: 0 | M8: 0 | N8: 15
B9: ALIETTE WP80 10X1KG BAG IN | F9: 0 | G9: 0 | H9: 0 | I9: 0 | J9: 0 | K9: 0 | L9: 0 | M9: 0 | N9: 0
B10: ALIETTE WP80 20X250GR BAG IN | F10: 0 | G10: 0 | H10: 0 | I10: 0 | J10: 0 | K10: 0 | L10: 0 | M10: 0 | N10: 0
B11: ALIETTE WP80 40X100GR BAG IN | F11: 0 | G11: 0 | H11: 0 | I11: 0 | J11: 0 | K11: 0 | L11: 0 | M11: 0 | N11: 0
B12: ANTRACOL (T) WP70 10X1KG BAG IN | F12: 85768 | G12: 60513 | H12: 0 | I12: 108931 | J12: 0 | K12: 0 | L12: 0 | M12: 0 | N12: 37350
B13: ANTRACOL (T) WP70 20X500GR BAG IN | F13: 0 | G13: 0 | H13: 0 | I13: 0 | J13: 0 | K13: 0 | L13: 0 | M13: 0 | N13: 0
B14: ANTRACOL (T) WP70 40X250GR BAG IN | F14: 0 | G14: 0 | H14: 0 | I14: 0 | J14: 0 | K14: 0 | L14: 0 | M14: 0 | N14: 0
B15: ANTRACOL (T) WP70 50X100GR BAG IN | F15: 0 | G15: 0 | H15: 0 | I15: 0 | J15: 0 | K15: 0 | L15: 0 | M15: 0 | N15: 0
B16: BAYFOLAN ALGAE 10X1L BOT IN | F16: 0 | G16: 0 | H16: 0 | I16: 0 | J16: 0 | K16: 0 | L16: 0 | M16: 0 | N16: 0
B17: BAYFOLAN ALGAE 20X500ML BOT IN | F17: 0 | G17: 0 | H17: 0 | I17: 0 | J17: 0 | K17: 0 | L17: 0 | M17: 0 | N17: 0
B18: CONFIDOR (T) SL200 10X1L BOT IN | F18: 0 | G18: 0 | H18: 0 | I18: 0 | J18: 0 | K18: 0 | L18: 0 | M18: 0 | N18: 0
B19: DISCOUNTINUE PRODUCT | F19: 0 | G19: 0 | H19: 0 | I19: 0 | J19: 0 | K19: 0 | L19: 0 | M19: 0 | N19: 0
B20: ETHREL SL39 10X1L BOT IN | F20: 0 | G20: 0 | H20: 0 | I20: 0 | J20: 0 | K20: 0 | L20: 0 | M20: 0 | N20: 0
B21: ETHREL SL39 20X500ML BOT IN | F21: 0 | G21: 0 | H21: 0 | I21: 0 | J21: 0 | K21: 0 | L21: 0 | M21: 0 | N21: 0
B22: ETHREL SL39 50X100ML BOT IN | F22: 0 | G22: 0 | H22: 0 | I22: 0 | J22: 0 | K22: 0 | L22: 0 | M22: 0 | N22: 0
B23: FAME (T) SC480 10X(20X10ML) BOT IN | F23: 0 | G23: 0 | H23: 0 | I23: 0 | J23: 0 | K23: 0 | L23: 0 | M23: 0 | N23: 0
B24: FOLICUR (T) EC250 10X1L BOT IN | F24: 0 | G24: 0 | H24: 0 | I24: 0 | J24: 0 | K24: 0 | L24: 0 | M24: 0 | N24: 0
B25: LUNA EXPERIENCE SC400 10X1L BOT IN | F25: 286 | G25: 1207 | H25: 0 | I25: 1362 | J25: 0 | K25: 0 | L25: 0 | M25: 0 | N25: 131
B26: LUNA EXPERIENCE SC400 40X250ML BOT IN | F26: 100 | G26: 1196.5 | H26: 0 | I26: 1186.5 | J26: 0 | K26: 0 | L26: 0 | M26: 0 | N26: 110
B27: LUNA EXPERIENCE SC400 50X100ML BOT IN | F27: 189.7 | G27: 0 | H27: 0 | I27: 122.1 | J27: 0 | K27: 0 | L27: 0 | M27: 0 | N27: 67.6
B28: NATIVO WG75 10X1KG BAG IN | F28: 4830 | G28: -1100 | H28: 0 | I28: 3589 | J28: 0 | K28: 0 | L28: 0 | M28: 0 | N28: 141
B29: NATIVO WG75 20X500GR BAG IN | F29: 5996 | G29: 1000 | H29: 0 | I29: 6426 | J29: 0 | K29: 0 | L29: 0 | M29: 0 | N29: 570
B30: NATIVO WG75 40X250GR BAG IN | F30: 3372.25 | G30: -200 | H30: 0 | I30: 3004.25 | J30: 0 | K30: 0 | L30: 0 | M30: 0 | N30: 168
B31: NATIVO WG75 50X100GR BAG IN | F31: 841.1 | G31: 100 | H31: 0 | I31: 906.1 | J31: 0 | K31: 0 | L31: 0 | M31: 0 | N31: 35
B32: OBERON (T) SC240 10X1L BOT IN | F32: 0 | G32: 150 | H32: 0 | I32: 83 | J32: 0 | K32: 0 | L32: 0 | M32: 0 | N32: 67
B33: OBERON (T) SC240 20X500ML BOT IN | F33: 11.5 | G33: 348 | H33: 0 | I33: 343.5 | J33: 0 | K33: 0 | L33: 0 | M33: 0 | N33: 16
B34: OBERON (T) SC240 40X200ML BOT IN | F34: -1 | G34: 248 | H34: 0 | I34: 232 | J34: 0 | K34: 0 | L34: 0 | M34: 0 | N34: 15
B35: OBERON (T) SC240 50X100ML BOT IN | F35: 15 | G35: 50 | H35: 0 | I35: 61 | J35: 0 | K35: 0 | L35: 0 | M35: 0 | N35: 4
B36: OBERON (T) SC240 5X2L BOT IN | F36: 0 | G36: 0 | H36: 0 | I36: 0 | J36: 0 | K36: 0 | L36: 0 | M36: 0 | N36: 0
B37: PLANOFIX SL4 5 20X500ML BOT IN | F37: 469.5 | G37: 0 | H37: 0 | I37: 468 | J37: 0 | K37: 0 | L37: 0 | M37: 0 | N37: 1.5
B38: PLANOFIX SL4 5 40X250ML BOT IN | F38: 276.5 | G38: 0 | H38: 0 | I38: 276.5 | J38: 0 | K38: 0 | L38: 0 | M38: 0 | N38: 0
B39: PLANOFIX SL4 5 50X100ML BOT IN | F39: 164.9 | G39: 2998.8 | H39: 0 | I39: 2679.3 | J39: 0 | K39: 0 | L39: 0 | M39: 0 | N39: 484.4
B40: PLANOFIX SL45 10X1L BOT IN | F40: 0 | G40: 0 | H40: 0 | I40: 0 | J40: 0 | K40: 0 | L40: 0 | M40: 0 | N40: 0
B41: REGENT GR0 3 20X1KG BAG IN | F41: 0 | G41: 0 | H41: 0 | I41: 0 | J41: 0 | K41: 0 | L41: 0 | M41: 0 | N41: 0
B42: TOPSTAR (T) WP80 8X(20X22.5GR) BOX IN | F42: 0 | G42: 0 | H42: 0 | I42: 0 | J42: 0 | K42: 0 | L42: 0 | M42: 0 | N42: 0
B43: Grand Total | F43: 103057.65 | G43: 69553.75 | H43: 0 | I43: 133345.9 | J43: 0 | K43: 0 | L43: 0 | M43: 0 | N43: 39265.5

Sheet Zylem SNS Report
A2: Company Name:-BAYER
A3: Stock and Sales FOR THE PERIOD 01-Apr-2021 TO 31-Aug-2021
A4: Generated on 9/16/2021 11:10:44 AM
A5: DISTRIBUTOR PRODUCTWISE
A6: OUTPUT IN : PIC,DETAILS AS : Column,CONSIDER : Voucher Date,INCLUDE VALIDATION : False
A7: DISTRIBUTOR:Kashmir Agro Centre (CLOSED),
A8: DISTRIBUTOR | B8: SAPCODE | C8: PRODUCT | D8: ITEMALIAS | E8: Opening Qty | F8: Purchase Qty | G8: Purchase Return Qty | H8: Sales Qty | I8: Sales Return Qty | J8: Transfer Qty | K8: Consignment Qty | L8: Adjustment Qty | M8: CLSG
A9: Kashmir Agro Centre | B9: 9061129 | C9: ALANTO (T) SC240 10X1L BOT IN | D9: 80266685 | E9: 249 | F9: 797 | G9: 0 | H9: 1046 | I9: 0 | J9: 0 | K9: 0 | L9: 0 | M9: 0
A10: Kashmir Agro Centre | B10: 9061129 | C10: ALANTO (T) SC240 20X500ML BOT IN | D10: 79934149 | E10: 301.5 | F10: 918 | G10: 0 | H10: 1129.5 | I10: 0 | J10: 0 | K10: 0 | L10: 0 | M10: 90
A11: Kashmir Agro Centre | B11: 9061129 | C11: ALANTO (T) SC240 40X250ML BOT IN | D11: 79915713 | E11: 120 | F11: 897.75 | G11: 0 | H11: 1027.75 | I11: 10 | J11: 0 | K11: 0 | L11: 0 | M11: 0
A12: Kashmir Agro Centre | B12: 9061129 | C12: ALANTO (T) SC240 50X100ML BOT IN | D12: 79901062 | E12: 67.7 | F12: 429.7 | G12: 0 | H12: 482.4 | I12: 0 | J12: 0 | K12: 0 | L12: 0 | M12: 15
A13: Kashmir Agro Centre | B13: 9061129 | C13: ANTRACOL (T) WP70 10X1KG BAG IN | D13: 6077322 | E13: 85768 | F13: 80513 | G13: 20000 | H13: 108931 | I13: 0 | J13: 0 | K13: 0 | L13: 0 | M13: 37350
A14: Kashmir Agro Centre | B14: 9061129 | C14: LUNA EXPERIENCE SC400 10X1L BOT IN | D14: 80251904 | E14: 286 | F14: 1207 | G14: 0 | H14: 1362 | I14: 0 | J14: 0 | K14: 0 | L14: 0 | M14: 131
A15: Kashmir Agro Centre | B15: 9061129 | C15: LUNA EXPERIENCE SC400 40X250ML BOT IN | D15: 80549652 | E15: 100 | F15: 1196.5 | G15: 0 | H15: 1186.5 | I15: 0 | J15: 0 | K15: 0 | L15: 0 | M15: 110
A16: Kashmir Agro Centre | B16: 9061129 | C16: LUNA EXPERIENCE SC400 50X100ML BOT IN | D16: 80199414 | E16: 189.7 | F16: 0 | G16: 0 | H16: 122.1 | I16: 0 | J16: 0 | K16: 0 | L16: 0 | M16: 67.6
A17: Kashmir Agro Centre | B17: 9061129 | C17: NATIVO WG75 10X1KG BAG IN | D17: 80525346 | E17: 4830 | F17: 0 | G17: 1100 | H17: 3773 | I17: 184 | J17: 0 | K17: 0 | L17: 0 | M17: 141
A18: Kashmir Agro Centre | B18: 9061129 | C18: NATIVO WG75 20X500GR BAG IN | D18: 79198698 | E18: 5996 | F18: 2800 | G18: 1800 | H18: 6860 | I18: 434 | J18: 0 | K18: 0 | L18: 0 | M18: 570
A19: Kashmir Agro Centre | B19: 9061129 | C19: NATIVO WG75 40X250GR BAG IN | D19: 79237790 | E19: 3372.25 | F19: 1300 | G19: 1500 | H19: 3334.25 | I19: 330 | J19: 0 | K19: 0 | L19: 0 | M19: 168
A20: Kashmir Agro Centre | B20: 9061129 | C20: NATIVO WG75 50X100GR BAG IN | D20: 79304102 | E20: 841.1 | F20: 200 | G20: 100 | H20: 976.1 | I20: 70 | J20: 0 | K20: 0 | L20: 0 | M20: 35
A21: Kashmir Agro Centre | B21: 9061129 | C21: OBERON (T) SC240 10X1L BOT IN | D21: 80209037 | E21: 0 | F21: 150 | G21: 0 | H21: 83 | I21: 0 | J21: 0 | K21: 0 | L21: 0 | M21: 67
A22: Kashmir Agro Centre | B22: 9061129 | C22: OBERON (T) SC240 20X500ML BOT IN | D22: 80026471 | E22: 11.5 | F22: 348 | G22: 0 | H22: 343.5 | I22: 0 | J22: 0 | K22: 0 | L22: 0 | M22: 16
A23: Kashmir Agro Centre | B23: 9061129 | C23: OBERON (T) SC240 40X200ML BOT IN | D23: 79971362 | E23: -1 | F23: 248 | G23: 0 | H23: 232 | I23: 0 | J23: 0 | K23: 0 | L23: 0 | M23: 15
A24: Kashmir Agro Centre | B24: 9061129 | C24: OBERON (T) SC240 50X100ML BOT IN | D24: 79998538 | E24: 15 | F24: 50 | G24: 0 | H24: 61 | I24: 0 | J24: 0 | K24: 0 | L24: 0 | M24: 4
A25: Kashmir Agro Centre | B25: 9061129 | C25: PLANOFIX SL4 5 20X500ML BOT IN | D25: 3825136 | E25: 469.5 | F25: 0 | G25: 0 | H25: 468 | I25: 0 | J25: 0 | K25: 0 | L25: 0 | M25: 1.5
A26: Kashmir Agro Centre | B26: 9061129 | C26: PLANOFIX SL4 5 40X250ML BOT IN | D26: 3825128 | E26: 276.5 | F26: 0 | G26: 0 | H26: 276.5 | I26: 0 | J26: 0 | K26: 0 | L26: 0 | M26: 0
A27: Kashmir Agro Centre | B27: 9061129 | C27: PLANOFIX SL4 5 50X100ML BOT IN | D27: 3825098 | E27: 164.9 | F27: 2998.8 | G27: 0 | H27: 2679.3 | I27: 0 | J27: 0 | K27: 0 | L27: 0 | M27: 484.4
A28: GRANDTOTAL | E28: 103057.65 | F28: 94053.75 | G28: 24500 | H28: 134373.9 | I28: 1028 | J28: 0 | K28: 0 | L28: 0 | M28: 39265.5

Sheet OPG
A1: ALANTO (T) SC240 10X1L BOT IN | B1: =VLOOKUP(A1,'[2]Product Master Sheet'!$B$2:$F$1506,5,0) -> 27 | C1: 249
A2: ALANTO (T) SC240 20X500ML BOT IN | B2: =VLOOKUP(A2,'[2]Product Master Sheet'!$B$2:$F$1506,5,0) -> 28 | C2: 301.5
A3: ALANTO (T) SC240 40X250ML BOT IN | B3: =VLOOKUP(A3,'[2]Product Master Sheet'!$B$2:$F$1506,5,0) -> 29 | C3: 120
A4: ALANTO (T) SC240 50X100ML BOT IN | B4: =VLOOKUP(A4,'[2]Product Master Sheet'!$B$2:$F$1506,5,0) -> 30 | C4: 67.7
A5: ANTRACOL (T) WP70 10X1KG BAG IN | B5: =VLOOKUP(A5,'[2]Product Master Sheet'!$B$2:$F$1506,5,0) -> 42 | C5: 85768
A6: LUNA EXPERIENCE SC400 10X1L BOT IN | B6: =VLOOKUP(A6,'[2]Product Master Sheet'!$B$2:$F$1506,5,0) -> 223 | C6: 286
A7: LUNA EXPERIENCE SC400 40X250ML BOT IN | B7: =VLOOKUP(A7,'[2]Product Master Sheet'!$B$2:$F$1506,5,0) -> 225 | C7: 100
A8: LUNA EXPERIENCE SC400 50X100ML BOT IN | B8: =VLOOKUP(A8,'[2]Product Master Sheet'!$B$2:$F$1506,5,0) -> 226 | C8: 189.7
A9: NATIVO WG75 10X1KG BAG IN | B9: =VLOOKUP(A9,'[2]Product Master Sheet'!$B$2:$F$1506,5,0) -> 290 | C9: 4830
A10: NATIVO WG75 20X500GR BAG IN | B10: =VLOOKUP(A10,'[2]Product Master Sheet'!$B$2:$F$1506,5,0) -> 292 | C10: 5996
A11: NATIVO WG75 50X100GR BAG IN | B11: =VLOOKUP(A11,'[2]Product Master Sheet'!$B$2:$F$1506,5,0) -> 294 | C11: 841.1
A12: OBERON (T) SC240 10X1L BOT IN | B12: =VLOOKUP(A12,'[2]Product Master Sheet'!$B$2:$F$1506,5,0) -> 296 | C12: 0
A13: OBERON (T) SC240 20X500ML BOT IN | B13: =VLOOKUP(A13,'[2]Product Master Sheet'!$B$2:$F$1506,5,0) -> 297 | C13: 11.5
A14: OBERON (T) SC240 40X200ML BOT IN | B14: =VLOOKUP(A14,'[2]Product Master Sheet'!$B$2:$F$1506,5,0) -> 299 | C14: -1
A15: OBERON (T) SC240 50X100ML BOT IN | B15: =VLOOKUP(A15,'[2]Product Master Sheet'!$B$2:$F$1506,5,0) -> 300 | C15: 15
A16: PLANOFIX SL4 5 20X500ML BOT IN | B16: =VLOOKUP(A16,'[2]Product Master Sheet'!$B$2:$F$1506,5,0) -> 305 | C16: 469.5
A17: PLANOFIX SL4 5 40X250ML BOT IN | B17: =VLOOKUP(A17,'[2]Product Master Sheet'!$B$2:$F$1506,5,0) -> 306 | C17: 276.5
A18: PLANOFIX SL4 5 50X100ML BOT IN | B18: =VLOOKUP(A18,'[2]Product Master Sheet'!$B$2:$F$1506,5,0) -> 307 | C18: 164.9
A19: ADMIRE (T) WG70 30X150GR BOT IN | B19: =VLOOKUP(A19,'[2]Product Master Sheet'!$B$2:$F$1506,5,0) -> 14 | C19: 0
A20: ADMIRE WG70 20X300GR BAG IN | B20: =VLOOKUP(A20,'[2]Product Master Sheet'!$B$2:$F$1506,5,0) -> 17 | C20: 0
A21: ALIETTE WP80 10X1KG BAG IN | B21: =VLOOKUP(A21,'[2]Product Master Sheet'!$B$2:$F$1506,5,0) -> 31 | C21: 0
A22: ALIETTE WP80 20X250GR BAG IN | B22: =VLOOKUP(A22,'[2]Product Master Sheet'!$B$2:$F$1506,5,0) -> 33 | C22: 0
A23: ALIETTE WP80 40X100GR BAG IN | B23: =VLOOKUP(A23,'[2]Product Master Sheet'!$B$2:$F$1506,5,0) -> 35 | C23: 0
A24: ANTRACOL (T) WP70 20X500GR BAG IN | B24: =VLOOKUP(A24,'[2]Product Master Sheet'!$B$2:$F$1506,5,0) -> 43 | C24: 0
A25: ANTRACOL (T) WP70 40X250GR BAG IN | B25: =VLOOKUP(A25,'[2]Product Master Sheet'!$B$2:$F$1506,5,0) -> 44 | C25: 0
A26: ANTRACOL (T) WP70 50X100GR BAG IN | B26: =VLOOKUP(A26,'[2]Product Master Sheet'!$B$2:$F$1506,5,0) -> 45 | C26: 0
A27: BAYFOLAN ALGAE 10X1L BOT IN | B27: =VLOOKUP(A27,'[2]Product Master Sheet'!$B$2:$F$1506,5,0) -> 1798 | C27: 0
A28: BAYFOLAN ALGAE 20X500ML BOT IN | B28: =VLOOKUP(A28,'[2]Product Master Sheet'!$B$2:$F$1506,5,0) -> 1789 | C28: 0
A29: CONFIDOR (T) SL200 10X1L BOT IN | B29: =VLOOKUP(A29,'[2]Product Master Sheet'!$B$2:$F$1506,5,0) -> 113 | C29: 0
A30: DISCOUNTINUE PRODUCT | B30: =VLOOKUP(A30,'[2]Product Master Sheet'!$B$2:$F$1506,5,0) -> 993 | C30: 0
A31: ETHREL SL39 10X1L BOT IN | B31: =VLOOKUP(A31,'[2]Product Master Sheet'!$B$2:$F$1506,5,0) -> 136 | C31: 0
A32: ETHREL SL39 20X500ML BOT IN | B32: =VLOOKUP(A32,'[2]Product Master Sheet'!$B$2:$F$1506,5,0) -> 137 | C32: 0
A33: ETHREL SL39 50X100ML BOT IN | B33: =VLOOKUP(A33,'[2]Product Master Sheet'!$B$2:$F$1506,5,0) -> 138 | C33: 0
A34: FAME (T) SC480 10X(20X10ML) BOT IN | B34: =VLOOKUP(A34,'[2]Product Master Sheet'!$B$2:$F$1506,5,0) -> 144 | C34: 0
A35: FOLICUR (T) EC250 10X1L BOT IN | B35: =VLOOKUP(A35,'[2]Product Master Sheet'!$B$2:$F$1506,5,0) -> 162 | C35: 0
A36: NATIVO WG75 40X250GR BAG IN | B36: =VLOOKUP(A36,'[2]Product Master Sheet'!$B$2:$F$1506,5,0) -> 293 | C36: 3372.25
A37: OBERON (T) SC240 5X2L BOT IN | B37: =VLOOKUP(A37,'[2]Product Master Sheet'!$B$2:$F$1506,5,0) -> 301 | C37: 0
A38: PLANOFIX SL45 10X1L BOT IN | B38: =VLOOKUP(A38,'[2]Product Master Sheet'!$B$2:$F$1506,5,0) -> 308 | C38: 0
A39: REGENT GR0 3 20X1KG BAG IN | B39: =VLOOKUP(A39,'[2]Product Master Sheet'!$B$2:$F$1506,5,0) -> 335 | C39: 0
A40: TOPSTAR (T) WP80 8X(20X22.5GR) BOX IN | B40: =VLOOKUP(A40,'[2]Product Master Sheet'!$B$2:$F$1506,5,0) -> 397 | C40: 0

Sheet Sheet1

Sheet Reco
B1: Zylem Report - 01-Apr-2021 TO 31-Aug-2021 | K1: Distributor Report - 01-Apr-2021 TO 31-Aug-2021 | T1: Difference (+/-)
A3: DEALER CODE | B3: Opening Qty | C3: Purchase Qty | D3: Purchase Return Qty | E3: Sales Qty | F3: Sales Return Qty | G3: Transfer Qty | H3: Consignment Qty | I3: Adjustment Qty | J3: CLSG | K3: Opening Qty | L3: Purchase Qty | M3: Purchase Return Qty | N3: Sales Qty | O3: Sales Return Qty | P3: Transfer Qty | Q3: Consignment Qty | R3: Adjustment Qty | S3: CLSG | T3: Opening Stock Qty | U3: Purchase Qty | V3: Purchase Return Qty | W3: Sales Qty | X3: Sales Return Qty | Y3: Transfer Qty | Z3: Consignment Qty | AA3: Adjustments Qty | AB3: CLSG | AC3: Remark
A4: ALANTO (T) SC240 10X1L BOT IN | B4: 249 | C4: 797 | D4: 0 | E4: 1046 | F4: 0 | G4: 0 | H4: 0 | I4: 0 | J4: 0 | K4: 249 | L4: 797 | M4: 0 | N4: 1046 | O4: 0 | P4: 0 | Q4: 0 | R4: 0 | S4: 0 | T4: 0 | U4: 0 | V4: 0 | W4: 0 | X4: 0 | Y4: 0 | Z4: 0 | AA4: 0 | AB4: 0 | AC4: Ok
A5: ALANTO (T) SC240 20X500ML BOT IN | B5: 301.5 | C5: 918 | D5: 0 | E5: 1129.5 | F5: 0 | G5: 0 | H5: 0 | I5: 0 | J5: 90 | K5: 301.5 | L5: 918 | M5: 0 | N5: 1129.5 | O5: 0 | P5: 0 | Q5: 0 | R5: 0 | S5: 90 | T5: 0 | U5: 0 | V5: 0 | W5: 0 | X5: 0 | Y5: 0 | Z5: 0 | AA5: 0 | AB5: 0 | AC5: Ok
A6: ALANTO (T) SC240 40X250ML BOT IN | B6: 120 | C6: 897.75 | D6: 0 | E6: 1027.75 | F6: 10 | G6: 0 | H6: 0 | I6: 0 | J6: 0 | K6: 120 | L6: 897.75 | M6: 0 | N6: 1017.75 | O6: 0 | P6: 0 | Q6: 0 | R6: 0 | S6: 0 | T6: 0 | U6: 0 | V6: 0 | W6: 10 | X6: 10 | Y6: 0 | Z6: 0 | AA6: 0 | AB6: 0 | AC6: Ok
A7: ALANTO (T) SC240 50X100ML BOT IN | B7: 67.7 | C7: 429.7 | D7: 0 | E7: 482.4 | F7: 0 | G7: 0 | H7: 0 | I7: 0 | J7: 15 | K7: 67.7 | L7: 429.7 | M7: 0 | N7: 482.4 | O7: 0 | P7: 0 | Q7: 0 | R7: 0 | S7: 15 | T7: 0 | U7: 0 | V7: 0 | W7: 0 | X7: 0 | Y7: 0 | Z7: 0 | AA7: 0 | AB7: 0 | AC7: Ok
A8: ANTRACOL (T) WP70 10X1KG BAG IN | B8: 85768 | C8: 80513 | D8: 20000 | E8: 108931 | F8: 0 | G8: 0 | H8: 0 | I8: 0 | J8: 37350 | K8: 85768 | L8: 60513 | M8: 0 | N8: 108931 | O8: 0 | P8: 0 | Q8: 0 | R8: 0 | S8: 37350 | T8: 0 | U8: 20000 | V8: 20000 | W8: 0 | X8: 0 | Y8: 0 | Z8: 0 | AA8: 0 | AB8: 0 | AC8: Ok
A9: LUNA EXPERIENCE SC400 10X1L BOT IN | B9: 286 | C9: 1207 | D9: 0 | E9: 1362 | F9: 0 | G9: 0 | H9: 0 | I9: 0 | J9: 131 | K9: 286 | L9: 1207 | M9: 0 | N9: 1362 | O9: 0 | P9: 0 | Q9: 0 | R9: 0 | S9: 131 | T9: 0 | U9: 0 | V9: 0 | W9: 0 | X9: 0 | Y9: 0 | Z9: 0 | AA9: 0 | AB9: 0 | AC9: Ok
A10: LUNA EXPERIENCE SC400 40X250ML BOT IN | B10: 100 | C10: 1196.5 | D10: 0 | E10: 1186.5 | F10: 0 | G10: 0 | H10: 0 | I10: 0 | J10: 110 | K10: 100 | L10: 1196.5 | M10: 0 | N10: 1186.5 | O10: 0 | P10: 0 | Q10: 0 | R10: 0 | S10: 110 | T10: 0 | U10: 0 | V10: 0 | W10: 0 | X10: 0 | Y10: 0 | Z10: 0 | AA10: 0 | AB10: 0 | AC10: Ok
A11: LUNA EXPERIENCE SC400 50X100ML BOT IN | B11: 189.7 | C11: 0 | D11: 0 | E11: 122.1 | F11: 0 | G11: 0 | H11: 0 | I11: 0 | J11: 67.6 | K11: 189.7 | L11: 0 | M11: 0 | N11: 122.1 | O11: 0 | P11: 0 | Q11: 0 | R11: 0 | S11: 67.6 | T11: 0 | U11: 0 | V11: 0 | W11: 0 | X11: 0 | Y11: 0 | Z11: 0 | AA11: 0 | AB11: 0 | AC11: Ok
A12: NATIVO WG75 10X1KG BAG IN | B12: 4830 | C12: 0 | D12: 1100 | E12: 3773 | F12: 184 | G12: 0 | H12: 0 | I12: 0 | J12: 141 | K12: 4830 | L12: -1100 | M12: 0 | N12: 3589 | O12: 0 | P12: 0 | Q12: 0 | R12: 0 | S12: 141 | T12: 0 | U12: 1100 | V12: 1100 | W12: 184 | X12: 184 | Y12: 0 | Z12: 0 | AA12: 0 | AB12: 0 | AC12: Ok
A13: NATIVO WG75 20X500GR BAG IN | B13: 5996 | C13: 2800 | D13: 1800 | E13: 6860 | F13: 434 | G13: 0 | H13: 0 | I13: 0 | J13: 570 | K13: 5996 | L13: 1000 | M13: 0 | N13: 6426 | O13: 0 | P13: 0 | Q13: 0 | R13: 0 | S13: 570 | T13: 0 | U13: 1800 | V13: 1800 | W13: 434 | X13: 434 | Y13: 0 | Z13: 0 | AA13: 0 | AB13: 0 | AC13: Ok
A14: NATIVO WG75 40X250GR BAG IN | B14: 3372.25 | C14: 1300 | D14: 1500 | E14: 3334.25 | F14: 330 | G14: 0 | H14: 0 | I14: 0 | J14: 168 | K14: 3372.25 | L14: -200 | M14: 0 | N14: 3004.25 | O14: 0 | P14: 0 | Q14: 0 | R14: 0 | S14: 168 | T14: 0 | U14: 1500 | V14: 1500 | W14: 330 | X14: 330 | Y14: 0 | Z14: 0 | AA14: 0 | AB14: 0 | AC14: Ok
A15: NATIVO WG75 50X100GR BAG IN | B15: 841.1 | C15: 200 | D15: 100 | E15: 976.1 | F15: 70 | G15: 0 | H15: 0 | I15: 0 | J15: 35 | K15: 841.1 | L15: 100 | M15: 0 | N15: 906.1 | O15: 0 | P15: 0 | Q15: 0 | R15: 0 | S15: 35 | T15: 0 | U15: 100 | V15: 100 | W15: 70 | X15: 70 | Y15: 0 | Z15: 0 | AA15: 0 | AB15: 0 | AC15: Ok
A16: OBERON (T) SC240 10X1L BOT IN | B16: 0 | C16: 150 | D16: 0 | E16: 83 | F16: 0 | G16: 0 | H16: 0 | I16: 0 | J16: 67 | K16: 0 | L16: 150 | M16: 0 | N16: 83 | O16: 0 | P16: 0 | Q16: 0 | R16: 0 | S16: 67 | T16: 0 | U16: 0 | V16: 0 | W16: 0 | X16: 0 | Y16: 0 | Z16: 0 | AA16: 0 | AB16: 0 | AC16: Ok
A17: OBERON (T) SC240 20X500ML BOT IN | B17: 11.5 | C17: 348 | D17: 0 | E17: 343.5 | F17: 0 | G17: 0 | H17: 0 | I17: 0 | J17: 16 | K17: 11.5 | L17: 348 | M17: 0 | N17: 343.5 | O17: 0 | P17: 0 | Q17: 0 | R17: 0 | S17: 16 | T17: 0 | U17: 0 | V17: 0 | W17: 0 | X17: 0 | Y17: 0 | Z17: 0 | AA17: 0 | AB17: 0 | AC17: Ok
A18: OBERON (T) SC240 40X200ML BOT IN | B18: -1 | C18: 248 | D18: 0 | E18: 232 | F18: 0 | G18: 0 | H18: 0 | I18: 0 | J18: 15 | K18: -1 | L18: 248 | M18: 0 | N18: 232 | O18: 0 | P18: 0 | Q18: 0 | R18: 0 | S18: 15 | T18: 0 | U18: 0 | V18: 0 | W18: 0 | X18: 0 | Y18: 0 | Z18: 0 | AA18: 0 | AB18: 0 | AC18: Ok
A19: OBERON (T) SC240 50X100ML BOT IN | B19: 15 | C19: 50 | D19: 0 | E19: 61 | F19: 0 | G19: 0 | H19: 0 | I19: 0 | J19: 4 | K19: 15 | L19: 50 | M19: 0 | N19: 61 | O19: 0 | P19: 0 | Q19: 0 | R19: 0 | S19: 4 | T19: 0 | U19: 0 | V19: 0 | W19: 0 | X19: 0 | Y19: 0 | Z19: 0 | AA19: 0 | AB19: 0 | AC19: Ok
A20: PLANOFIX SL4 5 20X500ML BOT IN | B20: 469.5 | C20: 0 | D20: 0 | E20: 468 | F20: 0 | G20: 0 | H20: 0 | I20: 0 | J20: 1.5 | K20: 469.5 | L20: 0 | M20: 0 | N20: 468 | O20: 0 | P20: 0 | Q20: 0 | R20: 0 | S20: 1.5 | T20: 0 | U20: 0 | V20: 0 | W20: 0 | X20: 0 | Y20: 0 | Z20: 0 | AA20: 0 | AB20: 0 | AC20: Ok
A21: PLANOFIX SL4 5 40X250ML BOT IN | B21: 276.5 | C21: 0 | D21: 0 | E21: 276.5 | F21: 0 | G21: 0 | H21: 0 | I21: 0 | J21: 0 | K21: 276.5 | L21: 0 | M21: 0 | N21: 276.5 | O21: 0 | P21: 0 | Q21: 0 | R21: 0 | S21: 0 | T21: 0 | U21: 0 | V21: 0 | W21: 0 | X21: 0 | Y21: 0 | Z21: 0 | AA21: 0 | AB21: 0 | AC21: Ok
A22: PLANOFIX SL4 5 50X100ML BOT IN | B22: 164.9 | C22: 2998.8 | D22: 0 | E22: 2679.3 | F22: 0 | G22: 0 | H22: 0 | I22: 0 | J22: 484.4 | K22: 164.9 | L22: 2998.8 | M22: 0 | N22: 2679.3 | O22: 0 | P22: 0 | Q22: 0 | R22: 0 | S22: 484.4 | T22: 0 | U22: 0 | V22: 0 | W22: 0 | X22: 0 | Y22: 0 | Z22: 0 | AA22: 0 | AB22: 0 | AC22: Ok
A23: ADMIRE (T) WG70 30X150GR BOT IN | B23: 0 | C23: 0 | D23: 0 | E23: 0 | F23: 0 | G23: 0 | H23: 0 | I23: 0 | J23: 0 | K23: 0 | L23: 0 | M23: 0 | N23: 0 | O23: 0 | P23: 0 | Q23: 0 | R23: 0 | S23: 0 | T23: 0 | U23: 0 | V23: 0 | W23: 0 | X23: 0 | Y23: 0 | Z23: 0 | AA23: 0 | AB23: 0 | AC23: Ok
A24: ADMIRE WG70 20X300GR BAG IN | B24: 0 | C24: 0 | D24: 0 | E24: 0 | F24: 0 | G24: 0 | H24: 0 | I24: 0 | J24: 0 | K24: 0 | L24: 0 | M24: 0 | N24: 0 | O24: 0 | P24: 0 | Q24: 0 | R24: 0 | S24: 0 | T24: 0 | U24: 0 | V24: 0 | W24: 0 | X24: 0 | Y24: 0 | Z24: 0 | AA24: 0 | AB24: 0 | AC24: Ok
A25: ALIETTE WP80 10X1KG BAG IN | B25: 0 | C25: 0 | D25: 0 | E25: 0 | F25: 0 | G25: 0 | H25: 0 | I25: 0 | J25: 0 | K25: 0 | L25: 0 | M25: 0 | N25: 0 | O25: 0 | P25: 0 | Q25: 0 | R25: 0 | S25: 0 | T25: 0 | U25: 0 | V25: 0 | W25: 0 | X25: 0 | Y25: 0 | Z25: 0 | AA25: 0 | AB25: 0 | AC25: Ok
A26: ALIETTE WP80 20X250GR BAG IN | B26: 0 | C26: 0 | D26: 0 | E26: 0 | F26: 0 | G26: 0 | H26: 0 | I26: 0 | J26: 0 | K26: 0 | L26: 0 | M26: 0 | N26: 0 | O26: 0 | P26: 0 | Q26: 0 | R26: 0 | S26: 0 | T26: 0 | U26: 0 | V26: 0 | W26: 0 | X26: 0 | Y26: 0 | Z26: 0 | AA26: 0 | AB26: 0 | AC26: Ok
A27: ALIETTE WP80 40X100GR BAG IN | B27: 0 | C27: 0 | D27: 0 | E27: 0 | F27: 0 | G27: 0 | H27: 0 | I27: 0 | J27: 0 | K27: 0 | L27: 0 | M27: 0 | N27: 0 | O27: 0 | P27: 0 | Q27: 0 | R27: 0 | S27: 0 | T27: 0 | U27: 0 | V27: 0 | W27: 0 | X27: 0 | Y27: 0 | Z27: 0 | AA27: 0 | AB27: 0 | AC27: Ok
A28: ANTRACOL (T) WP70 20X500GR BAG IN | B28: 0 | C28: 0 | D28: 0 | E28: 0 | F28: 0 | G28: 0 | H28: 0 | I28: 0 | J28: 0 | K28: 0 | L28: 0 | M28: 0 | N28: 0 | O28: 0 | P28: 0 | Q28: 0 | R28: 0 | S28: 0 | T28: 0 | U28: 0 | V28: 0 | W28: 0 | X28: 0 | Y28: 0 | Z28: 0 | AA28: 0 | AB28: 0 | AC28: Ok
A29: ANTRACOL (T) WP70 40X250GR BAG IN | B29: 0 | C29: 0 | D29: 0 | E29: 0 | F29: 0 | G29: 0 | H29: 0 | I29: 0 | J29: 0 | K29: 0 | L29: 0 | M29: 0 | N29: 0 | O29: 0 | P29: 0 | Q29: 0 | R29: 0 | S29: 0 | T29: 0 | U29: 0 | V29: 0 | W29: 0 | X29: 0 | Y29: 0 | Z29: 0 | AA29: 0 | AB29: 0 | AC29: Ok
A30: ANTRACOL (T) WP70 50X100GR BAG IN | B30: 0 | C30: 0 | D30: 0 | E30: 0 | F30: 0 | G30: 0 | H30: 0 | I30: 0 | J30: 0 | K30: 0 | L30: 0 | M30: 0 | N30: 0 | O30: 0 | P30: 0 | Q30: 0 | R30: 0 | S30: 0 | T30: 0 | U30: 0 | V30: 0 | W30: 0 | X30: 0 | Y30: 0 | Z30: 0 | AA30: 0 | AB30: 0 | AC30: Ok
A31: BAYFOLAN ALGAE 10X1L BOT IN | B31: 0 | C31: 0 | D31: 0 | E31: 0 | F31: 0 | G31: 0 | H31: 0 | I31: 0 | J31: 0 | K31: 0 | L31: 0 | M31: 0 | N31: 0 | O31: 0 | P31: 0 | Q31: 0 | R31: 0 | S31: 0 | T31: 0 | U31: 0 | V31: 0 | W31: 0 | X31: 0 | Y31: 0 | Z31: 0 | AA31: 0 | AB31: 0 | AC31: Ok
A32: BAYFOLAN ALGAE 20X500ML BOT IN | B32: 0 | C32: 0 | D32: 0 | E32: 0 | F32: 0 | G32: 0 | H32: 0 | I32: 0 | J32: 0 | K32: 0 | L32: 0 | M32: 0 | N32: 0 | O32: 0 | P32: 0 | Q32: 0 | R32: 0 | S32: 0 | T32: 0 | U32: 0 | V32: 0 | W32: 0 | X32: 0 | Y32: 0 | Z32: 0 | AA32: 0 | AB32: 0 | AC32: Ok
A33: CONFIDOR (T) SL200 10X1L BOT IN | B33: 0 | C33: 0 | D33: 0 | E33: 0 | F33: 0 | G33: 0 | H33: 0 | I33: 0 | J33: 0 | K33: 0 | L33: 0 | M33: 0 | N33: 0 | O33: 0 | P33: 0 | Q33: 0 | R33: 0 | S33: 0 | T33: 0 | U33: 0 | V33: 0 | W33: 0 | X33: 0 | Y33: 0 | Z33: 0 | AA33: 0 | AB33: 0 | AC33: Ok
A34: DISCOUNTINUE PRODUCT | B34: 0 | C34: 0 | D34: 0 | E34: 0 | F34: 0 | G34: 0 | H34: 0 | I34: 0 | J34: 0 | K34: 0 | L34: 0 | M34: 0 | N34: 0 | O34: 0 | P34: 0 | Q34: 0 | R34: 0 | S34: 0 | T34: 0 | U34: 0 | V34: 0 | W34: 0 | X34: 0 | Y34: 0 | Z34: 0 | AA34: 0 | AB34: 0 | AC34: Ok
A35: ETHREL SL39 10X1L BOT IN | B35: 0 | C35: 0 | D35: 0 | E35: 0 | F35: 0 | G35: 0 | H35: 0 | I35: 0 | J35: 0 | K35: 0 | L35: 0 | M35: 0 | N35: 0 | O35: 0 | P35: 0 | Q35: 0 | R35: 0 | S35: 0 | T35: 0 | U35: 0 | V35: 0 | W35: 0 | X35: 0 | Y35: 0 | Z35: 0 | AA35: 0 | AB35: 0 | AC35: Ok
A36: ETHREL SL39 20X500ML BOT IN | B36: 0 | C36: 0 | D36: 0 | E36: 0 | F36: 0 | G36: 0 | H36: 0 | I36: 0 | J36: 0 | K36: 0 | L36: 0 | M36: 0 | N36: 0 | O36: 0 | P36: 0 | Q36: 0 | R36: 0 | S36: 0 | T36: 0 | U36: 0 | V36: 0 | W36: 0 | X36: 0 | Y36: 0 | Z36: 0 | AA36: 0 | AB36: 0 | AC36: Ok
A37: ETHREL SL39 50X100ML BOT IN | B37: 0 | C37: 0 | D37: 0 | E37: 0 | F37: 0 | G37: 0 | H37: 0 | I37: 0 | J37: 0 | K37: 0 | L37: 0 | M37: 0 | N37: 0 | O37: 0 | P37: 0 | Q37: 0 | R37: 0 | S37: 0 | T37: 0 | U37: 0 | V37: 0 | W37: 0 | X37: 0 | Y37: 0 | Z37: 0 | AA37: 0 | AB37: 0 | AC37: Ok
A38: FAME (T) SC480 10X(20X10ML) BOT IN | B38: 0 | C38: 0 | D38: 0 | E38: 0 | F38: 0 | G38: 0 | H38: 0 | I38: 0 | J38: 0 | K38: 0 | L38: 0 | M38: 0 | N38: 0 | O38: 0 | P38: 0 | Q38: 0 | R38: 0 | S38: 0 | T38: 0 | U38: 0 | V38: 0 | W38: 0 | X38: 0 | Y38: 0 | Z38: 0 | AA38: 0 | AB38: 0 | AC38: Ok
A39: FOLICUR (T) EC250 10X1L BOT IN | B39: 0 | C39: 0 | D39: 0 | E39: 0 | F39: 0 | G39: 0 | H39: 0 | I39: 0 | J39: 0 | K39: 0 | L39: 0 | M39: 0 | N39: 0 | O39: 0 | P39: 0 | Q39: 0 | R39: 0 | S39: 0 | T39: 0 | U39: 0 | V39: 0 | W39: 0 | X39: 0 | Y39: 0 | Z39: 0 | AA39: 0 | AB39: 0 | AC39: Ok
A40: OBERON (T) SC240 5X2L BOT IN | B40: 0 | C40: 0 | D40: 0 | E40: 0 | F40: 0 | G40: 0 | H40: 0 | I40: 0 | J40: 0 | K40: 0 | L40: 0 | M40: 0 | N40: 0 | O40: 0 | P40: 0 | Q40: 0 | R40: 0 | S40: 0 | T40: 0 | U40: 0 | V40: 0 | W40: 0 | X40: 0 | Y40: 0 | Z40: 0 | AA40: 0 | AB40: 0 | AC40: Ok
A41: PLANOFIX SL45 10X1L BOT IN | B41: 0 | C41: 0 | D41: 0 | E41: 0 | F41: 0 | G41: 0 | H41: 0 | I41: 0 | J41: 0 | K41: 0 | L41: 0 | M41: 0 | N41: 0 | O41: 0 | P41: 0 | Q41: 0 | R41: 0 | S41: 0 | T41: 0 | U41: 0 | V41: 0 | W41: 0 | X41: 0 | Y41: 0 | Z41: 0 | AA41: 0 | AB41: 0 | AC41: Ok
A42: REGENT GR0 3 20X1KG BAG IN | B42: 0 | C42: 0 | D42: 0 | E42: 0 | F42: 0 | G42: 0 | H42: 0 | I42: 0 | J42: 0 | K42: 0 | L42: 0 | M42: 0 | N42: 0 | O42: 0 | P42: 0 | Q42: 0 | R42: 0 | S42: 0 | T42: 0 | U42: 0 | V42: 0 | W42: 0 | X42: 0 | Y42: 0 | Z42: 0 | AA42: 0 | AB42: 0 | AC42: Ok
A43: TOPSTAR (T) WP80 8X(20X22.5GR) BOX IN | B43: 0 | C43: 0 | D43: 0 | E43: 0 | F43: 0 | G43: 0 | H43: 0 | I43: 0 | J43: 0 | K43: 0 | L43: 0 | M43: 0 | N43: 0 | O43: 0 | P43: 0 | Q43: 0 | R43: 0 | S43: 0 | T43: 0 | U43: 0 | V43: 0 | W43: 0 | X43: 0 | Y43: 0 | Z43: 0 | AA43: 0 | AB43: 0 | AC43: Ok
A44: Total | B44: 103057.65 | C44: 94053.75 | D44: 24500 | E44: 134373.9 | F44: 1028 | G44: 0 | H44: 0 | I44: 0 | J44: 39265.5 | K44: 103057.65 | L44: 69553.75 | M44: 0 | N44: 133345.9 | O44: 0 | P44: 0 | Q44: 0 | R44: 0 | S44: 39265.5 | T44: 0 | U44: 24500 | V44: 24500 | W44: 1028 | X44: 1028 | Y44: 0 | Z44: 0 | AA44: 0 | AB44: 0
